bitfinex/quotes_ETHUSD_20220201
["timestamp","ask_amount","ask_price","bid_price","bid_amount"]
[1643674486647,1.50760767,2699.5,2698.8,0.08819997]
[1643674489310,1.50760767,2699.5,2698.8,1.31466997]
[1643674489311,1.69280767,2699.5,2698.8,1.31466997]
[1643674489508,1.50760767,2699.5,2698.9,0.1852]
[1643674489708,1.50760767,2699.5,2698.9,1.71161]
[1643674490309,0.67825089,2699.4,2698.9,1.71161]
[1643674490510,0.34270767,2699.5,2698.9,1.11161]
[1643674490711,2.42915702,2700.0,2698.9,1.11161]
[1643674490712,0.1852,2700.0,2699.0,0.9264264]
[1643674491013,0.1852,2700.0,2699.3,0.92624]
[1643674491313,0.1852,2700.0,2699.3,1.22624]
[1643674491509,0.1852,2700.1,2699.3,1.22624]
[1643674492109,0.78129749,2699.9,2699.4,0.9262653]
[1643674492314,0.96649749,2699.9,2699.3,3.0787705]
[1643674493953,0.96649749,2699.9,2699.3,2.7787705]
[1643674494151,0.96649749,2699.9,2699.1,0.92635]
[1643674494152,0.2214,2699.1,2698.7,0.92653]
[1643674494452,1.0073,2699.1,2698.7,0.92653]
[1643674495048,0.36757642,2699.0,2698.7,0.92653]
[1643674496048,0.36757642,2699.0,2698.7,1.8530403]
[1643674496901,0.36757642,2699.0,2698.3,0.1852]
[1643674497102,0.36757642,2699.0,2698.0,2.03832]
[1643674497700,0.31829925,2698.2,2698.0,4.8180571]
[1643674498105,0.31829925,2698.2,2698.1,0.3]
[1643674498308,0.31829925,2698.2,2698.1,3.8352]
[1643674499303,3.7945,2699.1,2698.1,3.8352]
[1643674499304,3.7945,2699.1,2698.2,1.22662]
[1643674499505,0.93887543,2699.2,2698.2,1.41182]
[1643674500305,0.43482023,2699.1,2698.2,1.41182]
[1643674501556,0.43482023,2699.1,2697.9,1.8532215]
[1643674501557,0.1852,2699.0,2697.9,1.8532215]
[1643674501760,0.19096606,2699.0,2697.8,0.08819997]
[1643674502558,0.39572613,2697.9,2697.8,0.08819997]
[1643674505218,0.39572613,2697.9,2697.5,0.1852]
[1643674506220,0.1852,2698.7,2697.5,2.58627928]
[1643674506425,4.0913,2699.1,2697.7,0.9267581]
[1643674506621,4.0913,2699.1,2697.9,0.25]
[1643674506622,3.9061,2699.1,2697.9,0.25]
[1643674506822,3.9061,2699.1,2698.0,3.69640773]
[1643674507032,0.1852,2699.5,2698.0,4.99640773]
[1643674507225,4.3729,2699.6,2698.9,0.35228047]
[1643674507421,0.13819996,2699.7,2699.0,0.533]
[1643674507626,0.1852,2700.1,2699.0,0.533]
[1643674507824,0.1852,2700.1,2699.1,2.05496088]
[1643674508090,0.1852,2700.1,2699.1,2.89172287]
[1643674508260,0.1852,2700.1,2699.8,0.82390753]
[1643674508559,0.34729536,2700.5,2699.9,0.94879188]
[1643674508761,0.34729536,2700.5,2699.9,0.533]
[1643674509158,0.34729536,2700.5,2699.8,0.3]
[1643674509458,1.05386448,2700.4,2700.2,1.74202424]
[1643674510059,1.05306091,2700.4,2700.2,1.74202424]
[1643674511906,0.185,2700.3,2700.2,1.74202424]
[1643674512311,0.185,2700.4,2700.2,1.74202424]
[1643674514228,0.185,2700.4,2700.2,0.07844081]
[1643674514510,0.41164398,2700.0,2699.6,1.12215233]
[1643674514713,0.41164398,2700.0,2699.5,1.8520541]
[1643674515111,0.41164398,2700.0,2699.4,0.58575523]
[1643674515309,0.87794839,2700.5,2699.4,0.58575523]
[1643674515548,0.87794839,2700.5,2699.4,2.43814173]
[1643674515954,0.87794839,2700.5,2699.4,2.0373865]
[1643674516161,0.69274839,2700.4,2699.5,0.3]
[1643674516353,0.69274839,2700.4,2699.4,1.1112]
[1643674516568,0.69274839,2700.4,2699.2,0.968]
[1643674516569,0.185,2700.3,2699.2,0.968]
[1643674516755,0.69274839,2700.1,2699.1,6.85897]
[1643674516954,0.69274839,2700.1,2699.1,1.85227]
[1643674516955,0.36464508,2699.3,2699.1,1.85227]
[1643674517154,0.1852,2700.0,2699.1,1.85227]
[1643674518166,0.1852,2700.0,2699.1,2.15227]
[1643674518555,0.87794839,2700.0,2699.1,2.15227]
[1643674518756,0.33768853,2699.3,2699.1,0.3]
[1643674519157,0.33768853,2699.3,2699.0,0.485]
[1643674519397,0.33768853,2699.3,2699.0,0.185]
[1643674519603,0.33768853,2699.3,2699.2,0.07844081]
[1643674519999,0.87794839,2700.1,2699.2,0.07844081]
[1643674521501,0.69274839,2700.0,2699.2,0.07844081]
[1643674521701,0.1852,2699.9,2699.2,0.07844081]
[1643674522103,0.79464463,2699.4,2699.2,0.07844081]
[1643674522309,0.43038782,2699.3,2699.2,0.07844081]
[1643674522508,0.61558782,2699.3,2699.2,0.07844081]
[1643674523759,0.43038782,2699.3,2699.2,0.07844081]
[1643674526162,0.43038782,2699.3,2698.5,0.1852]
[1643674526163,2.6,2699.2,2698.5,0.1852]
[1643674526366,2.6,2699.2,2698.1,4.8112]
[1643674526367,0.18486,2699.1,2698.1,0.1852]
[1643674526565,1.70675823,2698.9,2697.7,0.1852]
[1643674526810,0.19219875,2698.8,2697.7,0.1852]
[1643674527053,0.35214752,2697.8,2697.7,0.1852]
[1643674527315,0.35214752,2697.8,2697.5,1.07285464]
[1643674527918,0.74868587,2698.5,2697.5,1.07285464]
[1643674528141,0.74868587,2698.5,2697.5,1.7548979]
[1643674528724,0.74868587,2698.5,2697.5,2.0548979]
[1643674528920,0.74868587,2698.5,2697.5,0.4852]
[1643674529320,0.74868587,2698.5,2697.5,0.1852]
[1643674529518,0.40882447,2697.6,2697.5,0.1852]
[1643674529717,0.1852,2698.6,2697.5,3.25859264]
[1643674529927,4.29127156,2698.9,2697.5,3.25859264]
[1643674529928,4.2786,2698.9,2697.7,1.60882326]
[1643674530122,1.0792802,2698.8,2698.0,1.85304]
[1643674530318,1.0792802,2698.8,2698.1,0.46522162]
[1643674530554,3.6721,2699.1,2698.2,0.46522162]
[1643674530752,1.08734888,2699.0,2698.3,1.38816395]
[1643674530955,0.71115021,2699.3,2698.6,0.9264997]
[1643674531154,1.08719871,2699.2,2698.7,0.46522162]
[1643674531357,1.08719871,2699.2,2698.6,0.9264997]
[1643674531555,1.08719871,2699.2,2698.7,0.44850155]
[1643674531755,1.08719871,2699.2,2698.4,0.92654]
[1643674531955,0.36870941,2698.7,2698.5,0.44854313]
[1643674532555,0.36870941,2698.7,2698.5,0.44225087]
[1643674532956,0.71115021,2699.3,2698.5,0.44225087]
[1643674533358,0.87794839,2699.5,2698.5,0.44225087]
[1643674533359,0.1852,2699.5,2698.5,0.44225087]
[1643674533557,0.87794839,2699.6,2698.7,0.92647]
[1643674533757,0.87794839,2699.6,2698.7,1.22647]
[1643674534401,0.1852,2699.6,2698.7,1.22647]
[1643674534804,0.1852,2699.6,2698.9,0.38303808]
[1643674535008,1.1233665,2699.9,2699.1,0.00384387]
[1643674535009,0.69274839,2699.9,2699.1,0.00384387]
[1643674535210,1.37248108,2700.4,2699.2,0.25]
[1643674535211,0.69274839,2700.1,2699.2,0.25]
[1643674535406,0.69274839,2700.2,2699.2,0.783]
[1643674535610,0.69274839,2700.3,2699.3,0.3]
[1643674535812,0.32337059,2700.2,2699.4,0.533]
[1643674536008,0.70240164,2700.1,2699.5,0.533]
[1643674536206,0.70240164,2700.1,2699.5,0.833]
[1643674536207,0.69274839,2700.1,2699.5,0.833]
[1643674536406,0.69274839,2700.1,2699.4,0.92614]
[1643674536407,0.69274839,2700.1,2699.4,0.70235564]
[1643674536808,0.69274839,2700.1,2699.5,0.37913218]
[1643674537008,0.69274839,2700.1,2699.4,1.00235564]
[1643674537208,6.05,2700.0,2698.7,3.67267278]
[1643674537414,0.69274839,2699.7,2698.9,0.533]
[1643674537612,0.69274839,2699.4,2698.5,0.1852]
[1643674537811,0.01223653,2698.9,2698.5,0.1852]
[1643674538259,0.01223653,2698.9,2698.3,0.75606947]
[1643674538664,1.55734108,2699.5,2698.3,0.75606947]
[1643674538665,0.69274839,2699.4,2698.4,0.1852]
[1643674538866,0.87794839,2699.7,2698.4,3.1116634]
[1643674539065,0.69274839,2699.6,2699.3,0.31525061]
[1643674539264,0.69274839,2699.7,2698.6,2.1852]
[1643674539464,0.69274839,2699.6,2698.6,0.4852]
[1643674539665,0.37345227,2699.8,2698.7,0.92631]
[1643674539666,0.69274839,2699.7,2698.7,0.92631]
[1643674539863,0.37345227,2699.8,2698.8,0.1852]
[1643674539864,0.69274839,2699.6,2698.8,0.1852]
[1643674540064,0.1852,2699.7,2698.8,1.11155]
[1643674540362,0.1852,2699.7,2699.1,0.33823431]
[1643674540563,1.06620066,2699.8,2699.1,0.63823431]
[1643674540762,1.06620066,2699.8,2699.1,0.3]
[1643674541067,1.06620066,2699.8,2698.9,0.3]
[1643674541899,1.06620066,2699.8,2699.0,0.39848825]
[1643674542104,0.37345227,2699.8,2699.2,0.93646736]
[1643674542305,0.1852,2699.8,2699.2,2.16274736]
[1643674543407,1.12361975,2699.9,2699.2,2.16274736]
[1643674543805,0.69274839,2699.9,2699.2,2.16274736]
[1643674544006,0.69274839,2700.0,2699.2,2.16274736]
[1643674544211,2.3856,2700.1,2699.3,1.2262]
[1643674544212,0.69274839,2700.1,2699.3,1.2262]
[1643674544409,0.69274839,2700.2,2699.4,1.11135]
[1643674544609,0.69274839,2700.2,2699.5,0.3]
[1643674545209,0.69274839,2700.2,2699.9,0.3196481]
[1643674546259,0.69274839,2700.2,2699.6,0.9261]
[1643674546455,0.87774839,2700.3,2699.6,1.2261]
[1643674546653,0.69274839,2700.2,2699.6,1.2261]
[1643674547054,0.69274839,2700.2,2699.6,0.9261]
[1643674547256,0.69274839,2700.1,2699.6,1.2261]
[1643674547655,0.69274839,2700.1,2699.7,0.31570918]
[1643674547857,0.185,2700.5,2699.7,0.31570918]
[1643674547858,0.69274839,2700.2,2699.7,0.31570918]
[1643674548056,0.69274839,2700.3,2699.8,0.185]
[1643674548361,2.02646228,2701.0,2699.9,0.92597]
[1643674548362,0.69274839,2700.6,2699.9,0.92597]
[1643674548561,0.69274839,2700.6,2700.0,3.3318264]
[1643674548762,0.69274839,2700.7,2700.4,0.9179028]
[1643674548957,0.69274839,2700.8,2700.4,0.9179028]
[1643674549157,0.69274839,2700.8,2700.4,1.2179028]
[1643674549399,0.69274839,2700.8,2700.4,1.1679028]
[1643674549801,0.69274839,2700.8,2700.4,2.0937228]
[1643674550405,0.69274839,2700.7,2700.4,2.0937228]
[1643674550603,0.69274839,2700.7,2700.4,1.8437228]
[1643674550805,0.69274839,2700.7,2700.4,0.9179028]
[1643674551004,0.69274839,2700.8,2700.2,0.185]
[1643674551509,0.69274839,2700.8,2700.2,4.0957272]
[1643674551710,0.69274839,2701.0,2700.3,1.0]
[1643674551904,0.69274839,2701.0,2700.5,0.92579]
[1643674552306,0.69274839,2701.0,2700.6,0.8901424]
[1643674552505,0.69274839,2701.0,2700.5,0.92579]
[1643674552705,0.69274839,2700.9,2700.5,1.91953541]
[1643674553151,1.13505116,2701.1,2700.5,1.91953541]
[1643674553152,0.69274839,2701.0,2700.5,1.51953541]
[1643674553351,0.69274839,2701.0,2700.5,0.70453541]
[1643674553554,0.69274839,2701.0,2700.5,1.70453541]
[1643674553758,0.69274839,2700.9,2700.8,0.38172044]
[1643674554062,1.06396473,2701.6,2700.8,1.30743044]
[1643674554063,1.82779955,2701.0,2700.8,1.30743044]
[1643674554253,1.13505116,2700.9,2700.8,1.30743044]
[1643674554456,0.69274839,2701.1,2700.8,1.30743044]
[1643674554654,1.37248108,2701.6,2700.8,1.30743044]
[1643674554655,1.82779955,2701.2,2700.8,1.30743044]
[1643674554856,1.13505116,2701.1,2700.8,1.30743044]
[1643674555056,1.13505116,2701.0,2700.8,1.30743044]
[1643674555256,1.13505116,2700.9,2700.8,0.87571]
[1643674555660,1.82779955,2701.2,2700.8,0.87571]
[1643674555959,0.73505116,2701.1,2700.8,0.87571]
[1643674556158,0.69274839,2701.2,2700.8,0.87571]
[1643674556457,1.12373214,2701.3,2700.5,0.21267696]
[1643674556697,0.69274839,2701.2,2700.7,0.39398616]
[1643674557110,1.12373214,2701.3,2700.8,0.92571]
[1643674557311,0.69274839,2701.3,2700.8,0.92571]
[1643674558317,1.11367367,2701.6,2700.9,2.10424169]
[1643674558318,0.87774839,2701.6,2700.9,2.10424169]
[1643674558524,0.69274839,2701.7,2701.1,0.92553]
[1643674558825,0.69274839,2701.8,2701.1,0.92553]
[1643674559218,0.42678309,2701.9,2701.1,0.92553]
[1643674559219,0.69274839,2701.7,2701.1,0.92553]
[1643674559412,0.69274839,2701.8,2701.1,0.92553]
[1643674559916,0.69274839,2701.8,2701.1,2.77643]
[1643674560111,0.69274839,2701.8,2701.1,0.92553]
[1643674560316,0.69274839,2701.5,2700.7,6.53125]
[1643674560555,0.185,2701.7,2700.7,6.53125]
[1643674560556,0.87774839,2701.4,2700.7,4.68]
[1643674560758,0.69274839,2701.4,2700.4,1.11081]
[1643674560957,0.185,2701.3,2700.4,1.11081]
[1643674561159,0.185,2701.3,2700.4,0.185]
[1643674561160,0.69274839,2701.2,2700.4,0.185]
[1643674561359,0.185,2701.1,2700.4,0.135]
[1643674561561,0.36203001,2700.7,2700.4,0.135]
[1643674562158,0.185,2701.1,2700.4,0.135]
[1643674562759,0.185,2701.1,2700.2,0.3449515]
[1643674562959,0.185,2701.1,2700.4,0.79720969]
[1643674563359,0.34665579,2700.9,2700.4,0.79720969]
[1643674563960,0.34665579,2700.9,2700.2,0.3449515]
[1643674564404,0.34665579,2700.9,2700.0,1.185]
[1643674564603,0.34665579,2700.9,2699.9,5.1353]
[1643674565004,0.34665579,2700.9,2700.2,0.87871486]
[1643674565203,0.185,2700.8,2700.2,0.87871486]
[1643674565605,0.185,2701.0,2700.2,0.87871486]
[1643674566104,0.87774839,2701.2,2700.2,0.87871486]
[1643674566303,0.185,2701.2,2700.2,0.87871486]
[1643674566907,0.185,2701.2,2700.5,0.36939267]
[1643674567106,0.32194262,2701.1,2700.5,0.36939267]
[1643674567307,0.185,2701.0,2700.5,0.36939267]
[1643674568754,0.185,2701.0,2700.2,0.87871486]
[1643674569855,0.185,2701.0,2700.2,1.32795592]
[1643674570055,0.32194262,2701.1,2700.2,0.87871486]
[1643674571055,0.32194262,2701.1,2700.5,0.43027541]
[1643674573311,0.32194262,2701.1,2700.3,0.185]
[1643674573907,1.01469101,2701.1,2700.3,0.185]
[1643674574113,0.69274839,2701.0,2700.2,0.87871486]
[1643674574710,0.64274839,2701.0,2700.2,0.87871486]
[1643674574908,0.64274839,2701.0,2700.5,0.35611285]
[1643674575308,0.64274839,2701.0,2700.2,0.87871486]
[1643674575760,0.64274839,2701.0,2700.1,0.185]
[1643674575761,0.185,2700.9,2700.1,0.185]
[1643674575961,1.05737657,2700.8,2700.1,0.185]
[1643674576206,0.185,2700.7,2700.1,0.185]
[1643674576357,1.05737657,2700.6,2700.1,0.185]
[1643674576577,1.05737657,2700.6,2699.5,3.1357]
[1643674576759,0.40154074,2700.4,2699.8,0.4492761]
[1643674576959,1.05737657,2700.3,2699.9,0.76836026]
[1643674577160,1.05737657,2700.2,2699.9,0.76836026]
[1643674577364,1.05737657,2700.1,2699.9,0.76836026]
[1643674577558,1.1652,2700.9,2700.0,0.1851]
[1643674577759,1.05801573,2700.8,2700.0,0.1851]
[1643674577959,1.05801573,2700.8,2699.9,0.95336026]
[1643674578162,0.35530981,2700.5,2699.9,0.95336026]
[1643674578360,1.05801573,2700.4,2699.9,0.95336026]
[1643674579406,1.24301573,2700.4,2699.5,3.0734]
[1643674579608,1.05801573,2700.3,2699.4,0.185]
[1643674579807,1.35801573,2700.3,2699.4,0.185]
[1643674580009,1.05801573,2700.2,2699.4,0.185]
[1643674580212,0.185,2700.1,2699.1,0.185]
[1643674580430,0.42740189,2699.8,2699.2,0.39724527]
[1643674580606,1.05801573,2699.7,2699.2,0.39724527]
[1643674582615,1.05801573,2699.7,2698.9,0.1852]
[1643674582810,1.05801573,2699.7,2699.0,0.4934467]
[1643674584058,0.1852,2699.6,2698.6,4.8247]
[1643674584257,1.05801573,2699.5,2698.7,0.49411191]
[1643674584459,1.05801573,2699.4,2698.7,0.49411191]
[1643674584706,1.05801573,2699.3,2698.7,0.49411191]
[1643674584860,1.05801573,2699.2,2698.6,0.865209]
[1643674585058,1.05801573,2699.1,2698.7,0.49411191]
[1643674585262,0.43334963,2699.3,2698.7,0.49411191]
[1643674585464,1.04884893,2699.2,2698.7,0.49411191]
[1643674587109,1.04884893,2699.2,2698.4,0.1852]
[1643674587310,1.04884893,2699.2,2698.5,0.49412487]
[1643674588511,1.81991858,2699.2,2698.5,0.49412487]
[1643674588710,1.04884893,2699.1,2698.5,0.49412487]
[1643674589209,1.04884893,2699.1,2698.4,0.1852]
[1643674589411,0.1852,2699.0,2698.5,0.46282092]
[1643674589609,1.04884893,2699.1,2698.2,5.094]
[1643674589610,0.44552857,2698.5,2698.2,5.094]
[1643674589810,0.1852,2699.1,2698.3,0.4626259]
[1643674590011,1.07989818,2699.0,2698.4,0.4626259]
[1643674590211,1.07989818,2699.0,2698.5,0.4626259]
[1643674590414,1.07989818,2699.0,2698.6,0.46255303]
[1643674590658,1.07989818,2699.0,2698.0,1.1852]
[1643674590862,0.44213609,2698.6,2698.1,0.46227152]
[1643674592863,0.1852,2699.1,2698.1,0.46227152]
[1643674593066,1.07927804,2699.0,2698.1,0.46227152]
[1643674593264,0.1852,2698.9,2698.2,0.46227152]
[1643674593464,0.1852,2698.9,2697.9,6.13699246]
[1643674593465,1.07936338,2698.8,2697.9,6.13699246]
[1643674593666,1.07936338,2698.8,2698.0,0.46163926]
[1643674593866,0.1852,2699.1,2698.0,0.46163926]
[1643674594064,0.31737444,2698.5,2698.0,0.46163926]
[1643674594911,0.9267484,2698.9,2698.1,0.46163926]
[1643674595111,0.9267484,2698.9,2697.7,2.23745701]
[1643674595112,1.07878257,2698.8,2697.7,2.23745701]
[1643674595309,1.07878257,2698.8,2697.8,1.3026844]
[1643674595509,0.9267484,2698.9,2697.9,0.64666156]
[1643674595717,0.9267484,2698.9,2698.0,0.46146156]
[1643674596112,0.41681241,2698.3,2698.0,0.46146156]
[1643674596334,0.9267484,2698.9,2698.0,0.46146156]
[1643674597515,0.37879612,2698.4,2698.0,0.46146156]
[1643674597713,0.14993631,2698.4,2698.0,0.46146156]
[1643674599356,0.9267484,2698.9,2698.0,0.46146156]
[1643674600762,0.42235464,2698.7,2698.0,0.46146156]
[1643674601161,0.9267484,2698.9,2698.0,0.46146156]
[1643674601365,0.1852,2699.1,2698.1,2.14010067]
[1643674601567,1.3237,2699.4,2698.2,0.46146156]
[1643674601821,1.08177219,2699.3,2698.3,2.72190124]
[1643674602011,1.08177219,2699.3,2698.3,2.26043968]
[1643674602410,1.08177219,2699.3,2698.3,0.1852]
[1643674602612,1.49687679,2699.3,2698.8,1.22861714]
[1643674602812,1.08177219,2699.2,2698.8,1.22861714]
[1643674603023,9.43820126,2699.8,2698.9,2.19435006]
[1643674603024,7.2489,2699.8,2698.9,2.19435006]
[1643674603214,1.08180495,2699.7,2698.9,2.19435006]
[1643674603419,1.08180495,2699.6,2698.9,3.19435006]
[1643674603619,1.2158,2700.1,2698.9,3.19435006]
[1643674603826,1.08222719,2700.0,2698.9,4.12054006]
[1643674604014,1.44999365,2700.0,2698.9,4.12054006]
[1643674604214,1.08222719,2699.9,2699.0,0.92621]
[1643674604412,1.08222719,2699.9,2699.1,2.18656452]
[1643674604610,1.08222719,2699.9,2699.1,2.19939302]
[1643674605661,1.08222719,2699.8,2699.1,2.19939302]
[1643674605909,1.08222719,2700.0,2699.1,2.22174552]
[1643674606062,1.08222719,2699.9,2699.1,2.22375569]
[1643674606268,1.08222719,2699.8,2699.1,2.22375569]
[1643674606563,1.08222719,2699.7,2699.1,2.22375569]
[1643674606768,1.08222719,2699.6,2699.1,0.1852]
[1643674606997,1.26742719,2699.9,2699.1,0.1852]
[1643674607267,1.08222719,2699.8,2699.1,0.1852]
[1643674607470,0.1852,2699.7,2699.1,0.1852]
[1643674607664,1.08222719,2699.6,2699.1,0.1852]
[1643674607865,1.08222719,2699.6,2698.7,0.92636]
[1643674607866,0.38505054,2699.4,2698.7,0.92636]
[1643674608075,0.01297133,2699.2,2698.1,1.18750534]
[1643674608268,0.01223748,2698.5,2698.2,0.45618348]
[1643674608469,0.82793748,2698.5,2698.1,1.0]
[1643674608871,0.82793748,2698.5,2698.1,0.95]
[1643674609107,0.8157,2698.5,2698.1,0.37458734]
[1643674609316,0.8157,2698.5,2697.4,5.0552]
[1643674609509,0.8157,2698.5,2697.5,0.41950109]
[1643674609710,0.8157,2698.5,2697.6,0.1852]
[1643674609910,0.8157,2698.5,2697.7,0.41950109]
[1643674610310,0.8157,2698.5,2697.4,0.1852]
[1643674610311,0.8157,2698.5,2697.9,0.91677362]
[1643674610616,0.8157,2698.5,2698.0,0.41940858]
[1643674610817,0.1852,2698.9,2698.1,0.56535903]
[1643674611016,0.69709542,2699.7,2698.1,0.56535903]
[1643674611017,0.88239542,2699.9,2698.2,0.41940858]
[1643674611233,1.33700796,2699.7,2698.3,0.60460858]
[1643674611419,1.15180796,2699.6,2698.4,1.34586858]
[1643674611614,1.33700796,2699.6,2698.3,5.0694]
[1643674611914,1.15180796,2699.5,2698.3,5.0694]
[1643674612115,0.40090971,2699.3,2698.8,0.40019185]
[1643674612312,1.15180796,2699.2,2698.3,5.0694]
[1643674612512,1.15180796,2699.2,2698.3,0.1852]
[1643674613188,1.15180796,2699.2,2698.3,0.1352]
[1643674613384,1.15180796,2699.2,2698.4,0.4189274]
[1643674613787,1.15180796,2699.2,2698.6,0.40040726]
[1643674615189,1.33700796,2699.2,2698.6,0.40040726]
[1643674615387,1.15180796,2699.1,2698.6,0.40040726]
[1643674615591,1.15180796,2699.0,2698.6,0.40040726]
[1643674615789,1.32745291,2699.3,2698.6,0.40040726]
[1643674615790,1.15180796,2698.9,2698.6,0.40040726]
[1643674615992,0.1852,2699.2,2698.6,0.40040726]
[1643674616194,1.1232906,2699.1,2698.6,0.40040726]
[1643674616692,1.1232906,2699.1,2698.2,0.1852]
[1643674616916,0.1852,2699.0,2698.3,0.41906456]
[1643674617118,1.1232906,2698.9,2698.1,1.85289]
[1643674617318,1.1232906,2698.8,2698.2,0.41913644]
[1643674617519,1.1232906,2698.7,2698.2,0.41913644]
[1643674617717,0.1852,2699.2,2698.2,0.41913644]
[1643674617917,1.15478301,2699.1,2698.5,0.44693925]
[1643674618119,0.1852,2699.0,2698.5,0.44693925]
[1643674618321,1.15478301,2698.9,2698.5,0.44693925]
[1643674618518,2.02758301,2698.9,2698.1,1.85289]
[1643674618726,1.97591212,2698.8,2698.2,0.38888084]
[1643674618919,1.15478301,2698.8,2698.2,0.38888084]
[1643674619121,1.15478301,2698.7,2698.0,0.1852]
[1643674619319,1.15478301,2698.6,2698.1,0.38483855]
[1643674619521,1.15478301,2698.5,2698.1,0.38483855]
[1643674619720,0.8728,2698.9,2698.1,0.38483855]
[1643674620023,2.52352303,2698.8,2698.2,0.38483855]
[1643674620220,2.52352303,2698.8,2697.7,1.85323]
[1643674620221,1.15990303,2698.7,2697.7,1.85323]
[1643674620422,1.15990303,2698.7,2697.8,0.38499416]
[1643674621261,1.15990303,2698.7,2697.8,1.117153]
[1643674621461,0.36147622,2698.2,2697.9,0.38499416]
[1643674621664,1.54882,2698.8,2697.9,0.38499416]
[1643674621862,1.16114855,2698.7,2697.9,0.38499416]
[1643674622661,1.16114855,2698.7,2698.0,0.38499416]
[1643674622874,1.16114855,2698.7,2698.1,0.38499416]
[1643674623061,1.16114855,2698.7,2698.2,0.38499416]
[1643674623262,1.16114855,2698.7,2697.7,1.85323]
[1643674623263,1.16114855,2698.7,2698.3,0.38535308]
[1643674623461,1.16114855,2698.7,2697.7,1.85323]
[1643674623664,0.35412303,2698.6,2697.8,1.7984943]
[1643674623862,1.16114855,2698.5,2697.9,0.38554092]
[1643674624532,1.16114855,2698.5,2697.8,0.38554092]
[1643674624834,1.16114855,2698.5,2697.9,0.38554092]
[1643674625037,1.16114855,2698.5,2698.0,0.38554092]
[1643674625232,1.16114855,2698.5,2698.1,0.38554092]
[1643674625435,1.16114855,2698.5,2698.2,0.67358881]
[1643674625635,1.16114855,2698.5,2698.3,0.38554092]
[1643674625836,1.16114855,2698.4,2698.0,0.35012313]
[1643674626137,1.16114855,2698.3,2698.1,0.38549085]
[1643674626436,0.39907707,2698.6,2698.1,0.38549085]
[1643674626636,1.16263041,2698.5,2698.1,0.38549085]
[1643674628099,1.16263041,2698.5,2698.2,0.38549085]
[1643674628258,1.16263041,2698.5,2698.3,0.38549085]
[1643674628461,1.16263041,2698.5,2698.4,0.38549085]
[1643674628665,1.16263041,2698.5,2697.8,0.32000261]
[1643674628862,1.16263041,2698.5,2697.9,0.38545904]
[1643674629365,1.16263041,2698.5,2697.9,1.14165998]
[1643674629562,1.16263041,2698.5,2698.0,0.38545904]
[1643674629966,1.85972583,2699.0,2698.0,0.38545904]
[1643674630168,1.34783041,2698.9,2698.0,2.39884103]
[1643674630365,1.34783041,2698.9,2697.9,1.68283094]
[1643674630366,1.16263041,2698.8,2698.1,0.38545904]
[1643674630564,1.16263041,2698.8,2698.2,0.38545904]
[1643674630763,0.3301956,2698.6,2698.3,0.38545904]
[1643674630964,1.16263041,2698.5,2698.4,0.38545904]
[1643674631917,1.16263041,2698.8,2698.4,0.38545904]
[1643674632114,1.16263041,2698.7,2697.9,1.68283094]
[1643674632315,1.16263041,2698.6,2698.0,0.35461429]
[1643674632517,1.16263041,2698.5,2698.0,0.35461429]
[1643674632719,1.16263041,2698.4,2698.0,0.35461429]
[1643674632916,1.16263041,2698.3,2698.0,0.35461429]
[1643674633117,0.35404534,2698.7,2698.0,0.35461429]
[1643674633319,1.19454972,2698.6,2698.0,0.35461429]
[1643674633917,1.19454972,2698.5,2698.0,0.35461429]
[1643674634119,1.80906292,2698.9,2697.2,7.08415029]
[1643674634120,1.37974972,2698.4,2697.2,7.08415029]
[1643674634328,0.0128561,2698.1,2697.5,0.69051649]
[1643674634599,0.01250813,2697.6,2697.1,0.21029906]
[1643674634726,0.01250813,2697.6,2697.1,0.20799372]
[1643674634727,2.07104991,2697.5,2697.1,0.20799372]
[1643674634926,0.70812582,2697.3,2696.4,0.02230534]
[1643674635123,4.07704514,2697.2,2696.4,0.00230534]
[1643674635322,4.07704514,2697.2,2696.0,0.23873672]
[1643674635323,0.69709542,2696.9,2696.0,0.23873672]
[1643674635618,0.69709542,2696.9,2695.7,6.195e-05]
[1643674635619,0.70658193,2696.7,2695.7,6.195e-05]
[1643674635775,5.79590514,2696.6,2695.7,6.195e-05]
[1643674635977,0.01293239,2696.3,2695.7,6.195e-05]
[1643674636279,1.0,2696.1,2695.7,6.195e-05]
[1643674636474,3.91854755,2696.0,2695.7,6.195e-05]
[1643674636682,1.19454972,2695.9,2695.7,6.195e-05]
[1643674636874,6.7694,2695.8,2695.7,6.195e-05]
[1643674637080,8.34317372,2695.8,2695.7,6.195e-05]
[1643674637473,8.52803372,2695.8,2695.7,6.195e-05]
[1643674637724,7.99403372,2695.8,2695.7,6.195e-05]
[1643674638274,8.99502205,2695.8,2695.7,6.195e-05]
[1643674638673,6.799484,2695.8,2695.7,6.195e-05]
[1643674638875,1.67219997,2696.1,2695.7,6.195e-05]
[1643674638876,0.13819997,2696.1,2695.7,6.195e-05]
[1643674639077,0.18486,2696.6,2695.8,0.1854]
[1643674639313,1.40846534,2696.5,2695.8,2.2154]
[1643674639516,1.15426,2697.0,2695.9,0.03]
[1643674639722,1.5935499,2696.9,2695.9,0.03]
[1643674640016,0.41687779,2696.2,2695.8,0.1854]
[1643674640220,0.41687779,2696.2,2695.7,6.195e-05]
[1643674641622,0.41687779,2696.2,2695.4,0.03]
[1643674641623,0.00073805,2695.6,2695.4,0.03]
[1643674641929,0.38736683,2695.7,2695.5,0.77295212]
[1643674642122,1.37026,2696.6,2695.5,0.77295212]
[1643674642323,1.37026,2696.6,2695.6,0.1854]
[1643674642518,1.67026,2696.6,2695.6,0.1854]
[1643674642721,1.67026,2696.6,2695.5,0.1854]
[1643674643161,0.37769624,2695.6,2695.4,0.1854]
[1643674643364,1.67026,2696.6,2695.4,0.1854]
[1643674643564,0.67026,2696.6,2695.4,0.17493238]
[1643674643765,1.67026,2696.6,2695.4,0.17493238]
[1643674644168,0.37026,2696.6,2695.4,0.17493238]
[1643674644367,0.35270624,2696.2,2695.7,0.37570888]
[1643674644567,0.35270624,2696.2,2695.8,2.08385093]
[1643674644765,0.35270624,2696.2,2695.9,0.2154]
[1643674645166,0.35270624,2696.2,2695.9,0.1854]
[1643674645366,0.35270624,2696.2,2695.8,0.1854]
[1643674645766,0.35270624,2696.2,2695.7,0.1854]
[1643674645966,0.35270624,2696.2,2695.7,2.19588674]
[1643674646169,0.35270624,2696.2,2695.8,0.03]
[1643674646380,0.35270624,2696.2,2695.7,0.1854]
[1643674647437,4.55,2696.1,2695.2,0.6530798]
[1643674647629,0.35270624,2696.2,2695.2,0.6530798]
[1643674648323,0.834,2696.3,2695.2,0.6530798]